[Event "Titled Tuesday Blitz January 17 Early 2023"]
[White "Liyanage, Ranindu Dilshan"]
[Black "Horcajuelo Rocamora, Martin"]
[WhiteFideId "9915834"]
[BlackFideId "24573027"]
[WhiteElo "2342"]
[BlackElo "2107"]
[Result "0-1"]
[Round "04"]
[TimeControl "180+2"]
[Date "2023.01.17"]
[WhiteClock "0:00:18"]
[BlackClock "0:00:43"]

1. e4 {[%clk 0:02:59]}  c5 {[%clk 0:02:58]} 2. Nc3 {[%clk 0:02:59]}  e6 {[%clk 0:02:57]} 3. g3 {[%clk 0:02:59]}  Nc6 {[%clk 0:02:57]} 4. Bg2 {[%clk 0:02:56]}  g6 {[%clk 0:02:56]} 5. d3 {[%clk 0:02:50]}  Bg7 {[%clk 0:02:55]} 6. Be3 {[%clk 0:02:50]}  b6 {[%clk 0:02:55]} 7. Nge2 {[%clk 0:02:46]}  Nge7 {[%clk 0:02:54]} 8. d4 {[%clk 0:02:42]}  cxd4 {[%clk 0:02:53]} 9. Nxd4 {[%clk 0:02:43]}  O-O {[%clk 0:02:53]} 10. O-O {[%clk 0:02:42]}  a6 {[%clk 0:02:51]} 11. a4 {[%clk 0:02:39]}  Bb7 {[%clk 0:02:51]} 12. Qd2 {[%clk 0:02:37]}  Rc8 {[%clk 0:02:41]} 13. Rfd1 {[%clk 0:02:35]}  Qc7 {[%clk 0:02:34]} 14. Nxc6 {[%clk 0:02:16]}  Bxc6 {[%clk 0:02:30]} 15. Bf4 {[%clk 0:02:13]}  Qb7 {[%clk 0:02:18]} 16. Re1 {[%clk 0:02:02]}  d5 {[%clk 0:02:13]} 17. e5 {[%clk 0:01:53]}  Rfd8 {[%clk 0:02:06]} 18. Bg5 {[%clk 0:01:53]}  d4 {[%clk 0:01:51]} 19. Bxc6 {[%clk 0:01:45]}  Nxc6 {[%clk 0:01:51]} 20. Ne4 {[%clk 0:01:25]}  Nxe5 {[%clk 0:01:51]} 21. Qe2 {[%clk 0:01:22]}  d3 {[%clk 0:01:16]} 22. cxd3 {[%clk 0:01:21]}  Rxd3 {[%clk 0:01:15]} 23. Rac1 {[%clk 0:00:25]}  Nf3+ {[%clk 0:01:08]} 24. Qxf3 {[%clk 0:00:17]}  Rxf3 {[%clk 0:01:06]} 25. Nd6 {[%clk 0:00:17]}  Rxc1 {[%clk 0:01:03]} 26. Rxc1 {[%clk 0:00:18]}  Qd7 {[%clk 0:00:57]} 27. Rc8+ {[%clk 0:00:18]}  Bf8 {[%clk 0:00:44]} 28. Rd8 {[%clk 0:00:18]}  Qxd8 {[%clk 0:00:43]} 0-1


[Site "https://www.chess.com"]

[Event "Titled Tuesday Blitz January 17 Early 2023"]
[White "Belozerov, Andrei"]
[Black "Batsiashvili, Nino"]
[WhiteFideId "4120213"]
[BlackFideId "13602993"]
[WhiteElo "2461"]
[BlackElo "2467"]
[Result "1/2-1/2"]
[Round "04"]
[TimeControl "180+2"]
[Date "2023.01.17"]
[WhiteClock "0:00:10"]
[BlackClock "0:00:04"]

1. d4 {[%clk 0:03:00]}  Nf6 {[%clk 0:02:58]} 2. c4 {[%clk 0:03:00]}  c5 {[%clk 0:02:58]} 3. d5 {[%clk 0:02:59]}  b5 {[%clk 0:02:59]} 4. cxb5 {[%clk 0:02:59]}  a6 {[%clk 0:02:59]} 5. Nc3 {[%clk 0:02:59]}  e6 {[%clk 0:02:47]} 6. e4 {[%clk 0:02:58]}  axb5 {[%clk 0:02:39]} 7. Bxb5 {[%clk 0:02:57]}  Ba6 {[%clk 0:02:33]} 8. Bxa6 {[%clk 0:02:46]}  Rxa6 {[%clk 0:02:33]} 9. Nf3 {[%clk 0:02:45]}  Be7 {[%clk 0:02:22]} 10. e5 {[%clk 0:02:39]}  Nxd5 {[%clk 0:02:21]} 11. Nxd5 {[%clk 0:02:38]}  exd5 {[%clk 0:02:22]} 12. Qxd5 {[%clk 0:02:38]}  Rg6 {[%clk 0:02:06]} 13. O-O {[%clk 0:02:35]}  Nc6 {[%clk 0:02:01]} 14. Bf4 {[%clk 0:02:32]}  Qb6 {[%clk 0:01:37]} 15. b3 {[%clk 0:02:15]}  O-O {[%clk 0:01:37]} 16. Rfd1 {[%clk 0:02:13]}  Rd8 {[%clk 0:01:32]} 17. Rd2 {[%clk 0:02:08]}  h5 {[%clk 0:01:32]} 18. h3 {[%clk 0:02:03]}  Nb4 {[%clk 0:01:27]} 19. Qe4 {[%clk 0:01:57]}  Qe6 {[%clk 0:01:22]} 20. Re1 {[%clk 0:01:51]}  Rc8 {[%clk 0:01:03]} 21. Kh2 {[%clk 0:01:37]}  Rc6 {[%clk 0:00:59]} 22. a3 {[%clk 0:01:35]}  Na6 {[%clk 0:00:56]} 23. Qd5 {[%clk 0:01:32]}  Qf5 {[%clk 0:00:48]} 24. Be3 {[%clk 0:01:32]}  Nb8 {[%clk 0:00:36]} 25. Qd3 {[%clk 0:01:20]}  Qe6 {[%clk 0:00:33]} 26. Bf4 {[%clk 0:01:17]}  Rb6 {[%clk 0:00:31]} 27. Re3 {[%clk 0:01:11]}  h4 {[%clk 0:00:27]} 28. a4 {[%clk 0:01:04]}  Rb7 {[%clk 0:00:19]} 29. Qc4 {[%clk 0:00:59]}  Qxc4 {[%clk 0:00:16]} 30. bxc4 {[%clk 0:00:59]}  Ra6 {[%clk 0:00:15]} 31. Ra2 {[%clk 0:00:54]}  Rb4 {[%clk 0:00:15]} 32. Nd2 {[%clk 0:00:38]}  Nc6 {[%clk 0:00:14]} 33. Rd3 {[%clk 0:00:34]}  Nd4 {[%clk 0:00:15]} 34. a5 {[%clk 0:00:28]}  Bd8 {[%clk 0:00:12]} 35. Be3 {[%clk 0:00:27]}  Rxa5 {[%clk 0:00:11]} 36. Rxa5 {[%clk 0:00:26]}  Bxa5 {[%clk 0:00:12]} 37. Bxd4 {[%clk 0:00:27]}  cxd4 {[%clk 0:00:13]} 38. Rxd4 {[%clk 0:00:26]}  Rb2 {[%clk 0:00:13]} 39. Ne4 {[%clk 0:00:25]}  Bc7 {[%clk 0:00:12]} 40. Rd5 {[%clk 0:00:20]}  f6 {[%clk 0:00:10]} 41. f4 {[%clk 0:00:19]}  fxe5 {[%clk 0:00:10]} 42. fxe5 {[%clk 0:00:19]}  Re2 {[%clk 0:00:11]} 43. Nc5 {[%clk 0:00:16]}  Bxe5+ {[%clk 0:00:11]} 44. Kg1 {[%clk 0:00:17]}  Bg3 {[%clk 0:00:11]} 45. Nd3 {[%clk 0:00:16]}  Rd2 {[%clk 0:00:10]} 46. Kf1 {[%clk 0:00:15]}  Rc2 {[%clk 0:00:07]} 47. c5 {[%clk 0:00:14]}  Kf8 {[%clk 0:00:03]} 48. Rxd7 {[%clk 0:00:14]}  Ke8 {[%clk 0:00:04]} 49. Rd5 {[%clk 0:00:14]}  Ke7 {[%clk 0:00:04]} 50. Rd4 {[%clk 0:00:12]}  Ke6 {[%clk 0:00:04]} 51. Rd8 {[%clk 0:00:12]}  Kf5 {[%clk 0:00:03]} 52. Rd4 {[%clk 0:00:11]}  Ke6 {[%clk 0:00:03]} 53. Rd8 {[%clk 0:00:11]}  Kf5 {[%clk 0:00:04]} 54. Rd4 {[%clk 0:00:10]}  Ke6 {[%clk 0:00:04]} 1/2-1/2


[Site "https://www.chess.com"]

[Event "Titled Tuesday Blitz January 17 Early 2023"]
[White "Degenbaev, Aziz"]
[Black "Shuvalova, Polina"]
[WhiteFideId "13802640"]
[BlackFideId "24171760"]
[WhiteElo "2203"]
[BlackElo "2484"]
[Result "0-1"]
[Round "04"]
[TimeControl "180+2"]
[Date "2023.01.17"]
[WhiteClock "0:00:03"]
[BlackClock "0:00:53"]

1. e4 {[%clk 0:02:54]}  c6 {[%clk 0:02:57]} 2. d4 {[%clk 0:02:54]}  d5 {[%clk 0:02:58]} 3. e5 {[%clk 0:02:55]}  Bf5 {[%clk 0:02:57]} 4. Nd2 {[%clk 0:02:54]}  e6 {[%clk 0:02:56]} 5. Nb3 {[%clk 0:02:54]}  Ne7 {[%clk 0:02:53]} 6. Nf3 {[%clk 0:02:38]}  Nd7 {[%clk 0:02:47]} 7. Be2 {[%clk 0:02:36]}  Ng6 {[%clk 0:02:46]} 8. O-O {[%clk 0:02:24]}  f6 {[%clk 0:02:46]} 9. exf6 {[%clk 0:02:07]}  Qxf6 {[%clk 0:02:47]} 10. Be3 {[%clk 0:02:00]}  Bd6 {[%clk 0:02:46]} 11. Rc1 {[%clk 0:01:57]}  O-O {[%clk 0:02:44]} 12. c4 {[%clk 0:01:49]}  Nf4 {[%clk 0:02:43]} 13. c5 {[%clk 0:01:36]}  Nxe2+ {[%clk 0:02:38]} 14. Qxe2 {[%clk 0:01:37]}  Bc7 {[%clk 0:02:37]} 15. Ne1 {[%clk 0:01:20]}  e5 {[%clk 0:02:35]} 16. g3 {[%clk 0:01:08]}  e4 {[%clk 0:02:29]} 17. f3 {[%clk 0:00:57]}  Bh3 {[%clk 0:02:27]} 18. Rf2 {[%clk 0:00:54]}  Qg6 {[%clk 0:02:25]} 19. fxe4 {[%clk 0:00:52]}  dxe4 {[%clk 0:02:02]} 20. Nd2 {[%clk 0:00:30]}  Rxf2 {[%clk 0:01:48]} 21. Bxf2 {[%clk 0:00:29]}  Nf6 {[%clk 0:01:49]} 22. Nc4 {[%clk 0:00:23]}  Re8 {[%clk 0:01:45]} 23. Ne3 {[%clk 0:00:18]}  h6 {[%clk 0:01:44]} 24. b4 {[%clk 0:00:18]}  Kh8 {[%clk 0:01:39]} 25. b5 {[%clk 0:00:18]}  Rd8 {[%clk 0:01:35]} 26. bxc6 {[%clk 0:00:17]}  bxc6 {[%clk 0:01:35]} 27. Nc4 {[%clk 0:00:17]}  Qf5 {[%clk 0:01:31]} 28. Rb1 {[%clk 0:00:15]}  Bg4 {[%clk 0:01:27]} 29. Qb2 {[%clk 0:00:12]}  Nd5 {[%clk 0:01:19]} 30. Ne3 {[%clk 0:00:12]}  Nxe3 {[%clk 0:01:17]} 31. Bxe3 {[%clk 0:00:13]}  Rf8 {[%clk 0:01:13]} 32. Ng2 {[%clk 0:00:13]}  Bf3 {[%clk 0:01:08]} 33. Re1 {[%clk 0:00:05]}  Qh3 {[%clk 0:01:08]} 34. Nf4 {[%clk 0:00:03]}  Qg4 {[%clk 0:01:05]} 35. Ng2 {[%clk 0:00:02]}  Kh7 {[%clk 0:01:03]} 36. Qd2 {[%clk 0:00:01]}  Rb8 {[%clk 0:01:02]} 37. d5 {[%clk 0:00:01]}  cxd5 {[%clk 0:00:59]} 38. Qxd5 {[%clk 0:00:02]}  Rb2 {[%clk 0:00:59]} 39. Nf4 {[%clk 0:00:02]}  Bxf4 {[%clk 0:00:52]} 40. Bxf4 {[%clk 0:00:03]}  Qh3 {[%clk 0:00:53]} 0-1


[Site "https://www.chess.com"]

[Event "Titled Tuesday Blitz January 17 Early 2023"]
[White "Klose, Eli"]
[Black "Gurevich, Dmitry"]
[WhiteFideId "16242955"]
[BlackFideId "2000407"]
[WhiteElo "1519"]
[BlackElo "2393"]
[Result "0-1"]
[Round "04"]
[TimeControl "180+2"]
[Date "2023.01.17"]
[WhiteClock "0:00:31"]
[BlackClock "0:01:53"]

1. e4 {[%clk 0:03:00]}  c5 {[%clk 0:02:59]} 2. Nc3 {[%clk 0:02:42]}  g6 {[%clk 0:02:57]} 3. d3 {[%clk 0:02:41]}  Bg7 {[%clk 0:02:56]} 4. g3 {[%clk 0:02:42]}  Nc6 {[%clk 0:02:54]} 5. Be3 {[%clk 0:02:41]}  d6 {[%clk 0:02:51]} 6. Qd2 {[%clk 0:02:41]}  b5 {[%clk 0:02:45]} 7. Bg2 {[%clk 0:02:39]}  b4 {[%clk 0:02:43]} 8. Nd1 {[%clk 0:02:38]}  Rb8 {[%clk 0:02:39]} 9. Ne2 {[%clk 0:02:36]}  h5 {[%clk 0:02:37]} 10. h3 {[%clk 0:02:35]}  a5 {[%clk 0:02:34]} 11. O-O {[%clk 0:02:28]}  Ba6 {[%clk 0:02:31]} 12. f4 {[%clk 0:02:25]}  e6 {[%clk 0:02:23]} 13. f5 {[%clk 0:02:24]}  Ne5 {[%clk 0:02:17]} 14. fxe6 {[%clk 0:02:19]}  fxe6 {[%clk 0:02:16]} 15. Bg5 {[%clk 0:02:11]}  Qd7 {[%clk 0:02:11]} 16. Ne3 {[%clk 0:02:04]}  c4 {[%clk 0:02:01]} 17. d4 {[%clk 0:01:02]}  c3 {[%clk 0:02:00]} 18. bxc3 {[%clk 0:01:00]}  bxc3 {[%clk 0:01:59]} 19. Nxc3 {[%clk 0:00:31]}  Bxf1 {[%clk 0:01:55]} 20. Bxf1 {[%clk 0:00:31]}  Nf3+ {[%clk 0:01:53]} 0-1


[Site "https://www.chess.com"]

[Event "Titled Tuesday Blitz January 17 Early 2023"]
[White "Benmesbah, Natacha"]
[Black "Aloma Vidal, Robert"]
[WhiteFideId "642002"]
[BlackFideId "2260409"]
[WhiteElo "2261"]
[BlackElo "2442"]
[Result "0-1"]
[Round "04"]
[TimeControl "180+2"]
[Date "2023.01.17"]
[WhiteClock "0:01:04"]
[BlackClock "0:00:20"]

1. e4 {[%clk 0:03:00]}  e5 {[%clk 0:03:00]} 2. Nf3 {[%clk 0:03:00]}  Nf6 {[%clk 0:03:01]} 3. Nxe5 {[%clk 0:02:58]}  d6 {[%clk 0:03:01]} 4. Nf3 {[%clk 0:02:58]}  Nxe4 {[%clk 0:03:02]} 5. d3 {[%clk 0:02:58]}  Nf6 {[%clk 0:03:01]} 6. d4 {[%clk 0:02:59]}  g6 {[%clk 0:03:02]} 7. Bd3 {[%clk 0:02:50]}  Bg7 {[%clk 0:03:02]} 8. Bg5 {[%clk 0:02:44]}  O-O {[%clk 0:02:59]} 9. O-O {[%clk 0:02:44]}  h6 {[%clk 0:02:56]} 10. Bh4 {[%clk 0:02:39]}  c5 {[%clk 0:02:55]} 11. dxc5 {[%clk 0:02:22]}  dxc5 {[%clk 0:02:54]} 12. Nc3 {[%clk 0:02:23]}  Be6 {[%clk 0:02:22]} 13. h3 {[%clk 0:02:11]}  g5 {[%clk 0:02:05]} 14. Bg3 {[%clk 0:02:11]}  Nc6 {[%clk 0:02:04]} 15. Re1 {[%clk 0:02:01]}  Nb4 {[%clk 0:01:44]} 16. Ne5 {[%clk 0:01:36]}  Nxd3 {[%clk 0:01:32]} 17. Nxd3 {[%clk 0:01:36]}  b6 {[%clk 0:01:26]} 18. Be5 {[%clk 0:01:35]}  Bf5 {[%clk 0:01:26]} 19. Qf3 {[%clk 0:01:29]}  Bxd3 {[%clk 0:01:19]} 20. Rad1 {[%clk 0:01:28]}  Nd7 {[%clk 0:00:37]} 21. Bxg7 {[%clk 0:01:25]}  Kxg7 {[%clk 0:00:34]} 22. Rxd3 {[%clk 0:01:25]}  Re8 {[%clk 0:00:26]} 23. Red1 {[%clk 0:01:25]}  Ne5 {[%clk 0:00:25]} 24. Qb7 {[%clk 0:01:11]}  Nxd3 {[%clk 0:00:25]} 25. Rxd3 {[%clk 0:01:12]}  Re1+ {[%clk 0:00:22]} 26. Kh2 {[%clk 0:01:12]}  Qb8+ {[%clk 0:00:22]} 27. Qxb8 {[%clk 0:01:12]}  Rxb8 {[%clk 0:00:23]} 28. Kg3 {[%clk 0:01:12]}  b5 {[%clk 0:00:23]} 29. Nd5 {[%clk 0:01:11]}  c4 {[%clk 0:00:23]} 30. Rf3 {[%clk 0:01:11]}  Rd8 {[%clk 0:00:21]} 31. Nf6 {[%clk 0:01:07]}  Rd6 {[%clk 0:00:21]} 32. Nh5+ {[%clk 0:01:06]}  Kg6 {[%clk 0:00:20]} 33. Kh2 {[%clk 0:01:04]}  Kxh5 {[%clk 0:00:20]} 34. Rxf7 {[%clk 0:01:04]}  Kg6 {[%clk 0:00:20]} 35. Rxa7 {[%clk 0:01:04]}  Re2 {[%clk 0:00:20]} 0-1


[Site "https://www.chess.com"]

[Event "Titled Tuesday Blitz January 17 Early 2023"]
[White "Gabdrakhmanov, Azat"]
[Black "Sailer, Mike"]
[WhiteFideId "34189197"]
[BlackFideId "2012901"]
[WhiteElo "2316"]
[BlackElo "2109"]
[Result "1/2-1/2"]
[Round "04"]
[TimeControl "180+2"]
[Date "2023.01.17"]
[WhiteClock "0:00:20"]
[BlackClock "0:00:24"]

1. e4 {[%clk 0:03:00]}  d5 {[%clk 0:02:59]} 2. exd5 {[%clk 0:03:00]}  Qxd5 {[%clk 0:03:00]} 3. Nc3 {[%clk 0:03:00]}  Qd6 {[%clk 0:03:00]} 4. d4 {[%clk 0:03:01]}  Nf6 {[%clk 0:03:01]} 5. Nf3 {[%clk 0:03:01]}  c6 {[%clk 0:03:01]} 6. Be2 {[%clk 0:03:01]}  Bg4 {[%clk 0:03:01]} 7. h3 {[%clk 0:03:00]}  Bh5 {[%clk 0:03:01]} 8. O-O {[%clk 0:03:01]}  e6 {[%clk 0:03:02]} 9. Be3 {[%clk 0:02:57]}  Be7 {[%clk 0:03:02]} 10. Ne5 {[%clk 0:02:57]}  Bxe2 {[%clk 0:03:02]} 11. Qxe2 {[%clk 0:02:58]}  O-O {[%clk 0:03:01]} 12. a3 {[%clk 0:02:57]}  a5 {[%clk 0:03:01]} 13. Nc4 {[%clk 0:02:56]}  Qc7 {[%clk 0:03:00]} 14. Rad1 {[%clk 0:02:56]}  Nbd7 {[%clk 0:03:00]} 15. Qf3 {[%clk 0:02:56]}  Nd5 {[%clk 0:02:56]} 16. Bd2 {[%clk 0:02:55]}  Nxc3 {[%clk 0:02:56]} 17. Bxc3 {[%clk 0:02:54]}  Nb6 {[%clk 0:02:56]} 18. Ne3 {[%clk 0:02:49]}  Nd5 {[%clk 0:02:56]} 19. Bd2 {[%clk 0:02:49]}  Nxe3 {[%clk 0:02:43]} 20. Bxe3 {[%clk 0:02:48]}  Rad8 {[%clk 0:02:33]} 21. c4 {[%clk 0:02:46]}  Bf6 {[%clk 0:02:28]} 22. Rd2 {[%clk 0:02:39]}  Rd7 {[%clk 0:02:27]} 23. Rfd1 {[%clk 0:02:29]}  Rfd8 {[%clk 0:02:26]} 24. d5 {[%clk 0:02:18]}  cxd5 {[%clk 0:02:21]} 25. cxd5 {[%clk 0:02:19]}  Rxd5 {[%clk 0:02:14]} 26. Rxd5 {[%clk 0:02:17]}  Rxd5 {[%clk 0:02:13]} 27. Rxd5 {[%clk 0:02:17]}  exd5 {[%clk 0:02:14]} 28. Qxd5 {[%clk 0:02:17]}  Bxb2 {[%clk 0:02:06]} 29. Bf4 {[%clk 0:02:09]}  Qe7 {[%clk 0:01:48]} 30. Qxa5 {[%clk 0:01:33]}  Bxa3 {[%clk 0:01:36]} 31. Qa8+ {[%clk 0:01:25]}  Qf8 {[%clk 0:01:35]} 32. Qxb7 {[%clk 0:01:25]}  h6 {[%clk 0:01:27]} 33. Be5 {[%clk 0:01:18]}  Bd6 {[%clk 0:01:18]} 34. Bb2 {[%clk 0:01:15]}  Qb8 {[%clk 0:01:08]} 35. Qxb8+ {[%clk 0:00:56]}  Bxb8 {[%clk 0:01:07]} 36. f3 {[%clk 0:00:57]}  Ba7+ {[%clk 0:01:01]} 37. Kf1 {[%clk 0:00:57]}  f5 {[%clk 0:01:00]} 38. Ke2 {[%clk 0:00:57]}  Kf7 {[%clk 0:01:00]} 39. Kd3 {[%clk 0:00:57]}  g6 {[%clk 0:00:57]} 40. Bc1 {[%clk 0:00:50]}  h5 {[%clk 0:00:56]} 41. Bg5 {[%clk 0:00:50]}  Ke6 {[%clk 0:00:56]} 42. Bd8 {[%clk 0:00:48]}  Bf2 {[%clk 0:00:55]} 43. Bg5 {[%clk 0:00:46]}  Bb6 {[%clk 0:00:52]} 44. Bh6 {[%clk 0:00:46]}  Bc5 {[%clk 0:00:52]} 45. Bg7 {[%clk 0:00:46]}  Bb6 {[%clk 0:00:52]} 46. Bd4 {[%clk 0:00:44]}  Bc7 {[%clk 0:00:52]} 47. Bc5 {[%clk 0:00:43]}  Bf4 {[%clk 0:00:50]} 48. Kc4 {[%clk 0:00:42]}  Bc7 {[%clk 0:00:48]} 49. Kd3 {[%clk 0:00:41]}  Bf4 {[%clk 0:00:47]} 50. Be3 {[%clk 0:00:40]}  Bc7 {[%clk 0:00:47]} 51. Bd2 {[%clk 0:00:40]}  Bb8 {[%clk 0:00:46]} 52. Ke3 {[%clk 0:00:40]}  Ba7+ {[%clk 0:00:44]} 53. Kf4 {[%clk 0:00:38]}  Bd4 {[%clk 0:00:28]} 54. Kg5 {[%clk 0:00:32]}  Kf7 {[%clk 0:00:28]} 55. Ba5 {[%clk 0:00:25]}  Be3+ {[%clk 0:00:27]} 56. Kh4 {[%clk 0:00:24]}  Bd4 {[%clk 0:00:25]} 57. Kg5 {[%clk 0:00:20]}  Be3+ {[%clk 0:00:25]} 58. Kh4 {[%clk 0:00:20]}  Bf2+ {[%clk 0:00:24]} 59. Kg5 {[%clk 0:00:20]}  Be3+ {[%clk 0:00:24]} 1/2-1/2


[Site "https://www.chess.com"]

[Event "Titled Tuesday Blitz January 17 Early 2023"]
[White "Lauridsen, Jesper Morch"]
[Black "Demchenko, Anton"]
[WhiteFideId "1401890"]
[BlackFideId "4160258"]
[WhiteElo "2309"]
[BlackElo "2623"]
[Result "0-1"]
[Round "04"]
[TimeControl "180+2"]
[Date "2023.01.17"]
[WhiteClock "0:00:03"]
[BlackClock "0:00:33"]

1. e4 {[%clk 0:03:00]}  c5 {[%clk 0:02:56]} 2. Nf3 {[%clk 0:03:00]}  d6 {[%clk 0:02:56]} 3. d4 {[%clk 0:03:00]}  cxd4 {[%clk 0:02:56]} 4. Nxd4 {[%clk 0:03:00]}  Nf6 {[%clk 0:02:57]} 5. Nc3 {[%clk 0:03:00]}  Nc6 {[%clk 0:02:57]} 6. Bc4 {[%clk 0:03:00]}  Bd7 {[%clk 0:02:56]} 7. Bb3 {[%clk 0:02:56]}  e6 {[%clk 0:02:55]} 8. Be3 {[%clk 0:02:54]}  a6 {[%clk 0:02:56]} 9. Qe2 {[%clk 0:02:53]}  b5 {[%clk 0:02:55]} 10. O-O-O {[%clk 0:02:48]}  Na5 {[%clk 0:02:48]} 11. g4 {[%clk 0:02:37]}  b4 {[%clk 0:02:36]} 12. Na4 {[%clk 0:02:04]}  Nxb3+ {[%clk 0:02:20]} 13. axb3 {[%clk 0:02:00]}  Bxa4 {[%clk 0:01:53]} 14. bxa4 {[%clk 0:01:57]}  Nxe4 {[%clk 0:01:46]} 15. Qc4 {[%clk 0:01:18]}  Qc8 {[%clk 0:01:08]} 16. Nc6 {[%clk 0:00:45]}  d5 {[%clk 0:01:05]} 17. Rxd5 {[%clk 0:00:45]}  exd5 {[%clk 0:01:05]} 18. Qxd5 {[%clk 0:00:45]}  Qe6 {[%clk 0:01:06]} 19. Qxe6+ {[%clk 0:00:17]}  fxe6 {[%clk 0:01:05]} 20. Re1 {[%clk 0:00:18]}  Nf6 {[%clk 0:00:56]} 21. g5 {[%clk 0:00:17]}  Nd5 {[%clk 0:00:54]} 22. Bd4 {[%clk 0:00:17]}  Kf7 {[%clk 0:00:48]} 23. Ne5+ {[%clk 0:00:16]}  Kg8 {[%clk 0:00:49]} 24. Ng4 {[%clk 0:00:11]}  Re8 {[%clk 0:00:48]} 25. Rg1 {[%clk 0:00:10]}  Be7 {[%clk 0:00:40]} 26. Nh6+ {[%clk 0:00:06]}  gxh6 {[%clk 0:00:32]} 27. gxh6+ {[%clk 0:00:05]}  Kf7 {[%clk 0:00:33]} 28. Rg7+ {[%clk 0:00:05]}  Kf8 {[%clk 0:00:34]} 29. Rg1 {[%clk 0:00:03]}  Rg8 {[%clk 0:00:33]} 30. Bg7+ {[%clk 0:00:03]}  Kf7 {[%clk 0:00:34]} 31. Rg3 {[%clk 0:00:03]}  Bf6 {[%clk 0:00:34]} 32. Rf3 {[%clk 0:00:03]}  Rxg7 {[%clk 0:00:33]} 0-1


[Site "https://www.chess.com"]

[Event "Titled Tuesday Blitz January 17 Early 2023"]
[White "Zhigalko, Sergei"]
[Black "Vovk, Orest"]
[WhiteFideId "13502956"]
[BlackFideId "14113490"]
[WhiteElo "2572"]
[BlackElo "2315"]
[Result "1-0"]
[Round "04"]
[TimeControl "180+2"]
[Date "2023.01.17"]
[WhiteClock "0:00:15"]
[BlackClock "0:01:33"]

1. e4 {[%clk 0:03:00]}  g5 {[%clk 0:02:57]} 2. d4 {[%clk 0:03:00]}  g4 {[%clk 0:02:51]} 3. Nc3 {[%clk 0:02:56]}  Bg7 {[%clk 0:02:51]} 4. Be3 {[%clk 0:02:55]}  d6 {[%clk 0:02:50]} 5. Nge2 {[%clk 0:02:47]}  c6 {[%clk 0:02:49]} 6. Nf4 {[%clk 0:02:43]}  h5 {[%clk 0:02:48]} 7. Bc4 {[%clk 0:02:34]}  Qb6 {[%clk 0:02:44]} 8. O-O {[%clk 0:02:27]}  Qxb2 {[%clk 0:02:39]} 9. Qd3 {[%clk 0:02:24]}  Qa3 {[%clk 0:02:27]} 10. Rab1 {[%clk 0:02:09]}  Nd7 {[%clk 0:02:19]} 11. e5 {[%clk 0:01:38]}  dxe5 {[%clk 0:01:51]} 12. Bxf7+ {[%clk 0:01:37]}  Kf8 {[%clk 0:01:36]} 13. Ne6+ {[%clk 0:00:15]}  Kxf7 {[%clk 0:01:33]} 14. Ng5+ {[%clk 0:00:15]} 1-0


[Site "https://www.chess.com"]

[Event "Titled Tuesday Blitz January 17 Early 2023"]
[White "Ozen, Bahadir"]
[Black "Musovic, Armin"]
[WhiteFideId "6337058"]
[BlackFideId "939935"]
[WhiteElo "2369"]
[BlackElo "2261"]
[Result "1-0"]
[Round "04"]
[TimeControl "180+2"]
[Date "2023.01.17"]
[WhiteClock "0:00:55"]
[BlackClock "0:00:13"]

1. g3 {[%clk 0:03:00]}  h5 {[%clk 0:02:59]} 2. Nf3 {[%clk 0:03:00]}  g6 {[%clk 0:02:59]} 3. Bg2 {[%clk 0:02:53]}  Bg7 {[%clk 0:02:59]} 4. d4 {[%clk 0:02:52]}  d5 {[%clk 0:02:59]} 5. c3 {[%clk 0:02:42]}  Nf6 {[%clk 0:02:59]} 6. Bf4 {[%clk 0:02:36]}  a6 {[%clk 0:02:50]} 7. Nbd2 {[%clk 0:02:36]}  Kf8 {[%clk 0:02:38]} 8. h3 {[%clk 0:02:32]}  b6 {[%clk 0:02:30]} 9. a4 {[%clk 0:02:25]}  a5 {[%clk 0:02:28]} 10. O-O {[%clk 0:02:19]}  c6 {[%clk 0:02:01]} 11. Re1 {[%clk 0:02:10]}  Bf5 {[%clk 0:01:48]} 12. Nh4 {[%clk 0:02:07]}  Qc8 {[%clk 0:01:39]} 13. Nxf5 {[%clk 0:02:06]}  gxf5 {[%clk 0:01:39]} 14. h4 {[%clk 0:01:53]}  Bh6 {[%clk 0:01:28]} 15. e3 {[%clk 0:01:47]}  Nbd7 {[%clk 0:01:23]} 16. c4 {[%clk 0:01:43]}  e6 {[%clk 0:01:19]} 17. Bd6+ {[%clk 0:01:39]}  Kg8 {[%clk 0:01:16]} 18. Rc1 {[%clk 0:01:40]}  Bf8 {[%clk 0:01:11]} 19. Bf4 {[%clk 0:01:32]}  Bb4 {[%clk 0:01:11]} 20. cxd5 {[%clk 0:01:32]}  exd5 {[%clk 0:01:11]} 21. Qc2 {[%clk 0:01:30]}  Nf8 {[%clk 0:01:10]} 22. Red1 {[%clk 0:01:27]}  c5 {[%clk 0:01:00]} 23. dxc5 {[%clk 0:01:27]}  bxc5 {[%clk 0:01:00]} 24. Be5 {[%clk 0:01:17]}  Qe6 {[%clk 0:00:54]} 25. Bxf6 {[%clk 0:01:16]}  Qxf6 {[%clk 0:00:55]} 26. Bxd5 {[%clk 0:01:16]}  Ra6 {[%clk 0:00:51]} 27. Nf3 {[%clk 0:01:11]}  Kg7 {[%clk 0:00:44]} 28. Bc4 {[%clk 0:01:09]}  Rb6 {[%clk 0:00:43]} 29. Rd5 {[%clk 0:01:08]}  Rb7 {[%clk 0:00:28]} 30. Rcd1 {[%clk 0:01:05]}  Ng6 {[%clk 0:00:27]} 31. Rxf5 {[%clk 0:01:04]}  Qb6 {[%clk 0:00:23]} 32. Ng5 {[%clk 0:01:03]}  Rf8 {[%clk 0:00:22]} 33. b3 {[%clk 0:01:02]}  Re7 {[%clk 0:00:18]} 34. Qb2+ {[%clk 0:01:02]}  Kh6 {[%clk 0:00:18]} 35. Rf6 {[%clk 0:00:57]}  Qc7 {[%clk 0:00:18]} 36. Rdd6 {[%clk 0:00:56]}  Qb8 {[%clk 0:00:15]} 37. Nxf7+ {[%clk 0:00:55]}  Rexf7 {[%clk 0:00:13]} 38. Rxg6+ {[%clk 0:00:56]}  Kh7 {[%clk 0:00:13]} 39. Rh6+ {[%clk 0:00:55]} 1-0


[Site "https://www.chess.com"]